bitfinex/quotes_SOLUSD_20250901
["timestamp","ask_amount","ask_price","bid_price","bid_amount"]
[1756732081685,0.03,200.43,200.4,6.69682854]
[1756732081880,0.03,200.43,200.39,46.07682854]
[1756732082094,0.66,200.42,200.39,39.38]
[1756732082297,6.72682854,200.43,200.39,44.37023886]
[1756732082480,0.03,200.43,200.39,51.0670674]
[1756732082681,0.03,200.43,200.4,0.68]
[1756732083182,0.03,200.43,200.39,51.0670674]
[1756732083383,0.03,200.43,200.4,0.68]
[1756732083578,0.03,200.43,200.39,51.7470674]
[1756732083782,7.35682854,200.42,200.36,0.68]
[1756732083982,0.03,200.43,200.37,46.09682854]
[1756732084284,0.03,200.43,200.4,4.99001996]
[1756732084698,7.38682854,200.43,200.39,5.11021832]
[1756732084902,7.39682854,200.42,200.39,5.11021832]
[1756732085282,6.69682854,200.41,200.39,0.12]
[1756732085491,6.69682854,200.4,200.39,0.12]
[1756732085687,6.69682854,200.41,200.39,0.12]
[1756732085882,6.69682854,200.42,200.39,0.12]
[1756732086185,0.03,200.43,200.4,7.37682854]
[1756732086388,0.03,200.43,200.39,11.80699477]
[1756732086593,0.03,200.43,200.39,12.48699477]
[1756732086905,6.72682854,200.43,200.39,5.11016623]
[1756732087078,6.72682854,200.43,200.4,0.68]
[1756732087483,0.03,200.43,200.39,5.11016623]
[1756732087682,6.72682854,200.43,200.39,5.79016623]
[1756732088084,4.21729457,200.43,200.39,5.79016623]
[1756732088297,0.03,200.43,200.4,0.68]
[1756732088491,0.03,200.43,200.41,5.66977096]
[1756732089002,0.03,200.43,200.42,0.68]
[1756732089177,0.03,200.45,200.42,4.39447183]
[1756732089382,0.03,200.45,200.41,48.59706553]
[1756732089383,0.03,200.45,200.43,4.39447183]
[1756732089685,0.03,200.45,200.44,3.71447183]
[1756732090093,0.03,200.45,200.44,4.39447183]
[1756732090303,0.03,200.45,200.44,3.71447183]
[1756732091900,0.03,200.45,200.44,8.70349597]
[1756732092085,0.03,200.45,200.44,4.98902414]
[1756732092406,0.03,200.45,200.44,8.7021364]
[1756732093408,0.03,200.45,200.44,3.71311226]
[1756732095111,4.91729457,200.45,200.44,3.71311226]
[1756732095401,0.03,200.45,200.44,3.71311226]
[1756732097493,4.21729457,200.45,200.44,3.71311226]
[1756732097696,4.91729457,200.45,200.44,3.71311226]
[1756732098415,4.91729457,200.45,200.44,4.39311226]
[1756732098416,0.03,200.45,200.44,4.39311226]
[1756732098591,0.03,200.45,200.44,9.3821364]
[1756732099015,0.03,200.45,200.44,6.3831364]
[1756732099194,30.88729457,200.49,200.44,6.3831364]
[1756732099195,4.18729457,200.48,200.44,6.3831364]
[1756732099510,4.88729457,200.47,200.42,9.17662367]
[1756732099810,4.88729457,200.47,200.43,0.68]
[1756732100010,26.7,200.49,200.43,0.68]
[1756732100193,4.18729457,200.47,200.43,0.68]
[1756732101415,4.18729457,200.47,200.44,4.98902414]
[1756732101914,138.88705058,200.52,200.44,4.98902414]
[1756732102099,4.18729457,200.48,200.44,5.66902414]
[1756732102419,4.18729457,200.51,200.45,0.68]
[1756732102596,3.36141636,200.5,200.45,0.68]
[1756732102802,4.18729457,200.51,200.45,0.68]
[1756732103415,4.18729457,200.51,200.46,4.98852638]
[1756732103716,0.03,200.49,200.46,5.66852638]
[1756732104217,4.18729457,200.48,200.45,4.98876812]
[1756732104525,0.7,200.48,200.45,4.98876812]
[1756732104703,4.18729457,200.48,200.45,4.98876812]
[1756732105111,4.88729457,200.47,200.42,0.12]
[1756732105424,4.18729457,200.48,200.43,9.85650328]
[1756732105596,4.21729457,200.49,200.44,0.68]
[1756732105915,4.88729457,200.48,200.43,4.98920871]
[1756732106121,4.88729457,200.48,200.43,5.66920871]
[1756732107115,0.7,200.48,200.43,5.66920871]
[1756732107294,4.88729457,200.48,200.43,4.98920871]
[1756732107500,4.18729457,200.48,200.45,4.98877525]
[1756732107796,0.03,200.49,200.47,4.18729457]
[1756732108105,0.03,200.49,200.47,0.68]
[1756732108496,0.73,200.49,200.45,44.30877525]
[1756732108691,4.21729457,200.49,200.45,4.98877525]
[1756732109019,4.21729457,200.49,200.45,5.66877525]
[1756732109334,4.91729457,200.49,200.45,5.66877525]
[1756732109491,4.21729457,200.49,200.43,49.17649318]
[1756732109694,4.18729457,200.48,200.43,44.98919861]
[1756732109892,4.18729457,200.48,200.43,4.98919861]
[1756732110203,4.18729457,200.47,200.43,4.98919861]
[1756732110405,4.21729457,200.49,200.44,0.68]
[1756732110611,4.21729457,200.49,200.45,0.68]
[1756732110913,4.18729457,200.47,200.43,4.98919861]
[1756732111405,4.18729457,200.48,200.43,5.66919861]
[1756732111600,4.88729457,200.48,200.43,5.66919861]
[1756732112213,0.7,200.48,200.43,5.66919861]
[1756732112424,4.88729457,200.48,200.43,5.66919861]
[1756732112620,4.18729457,200.46,200.42,0.12]
[1756732112921,0.7,200.48,200.43,0.68]
[1756732113097,4.21729457,200.49,200.44,0.68]
[1756732113520,0.7,200.48,200.44,0.68]
[1756732113717,4.21729457,200.49,200.45,4.98877525]
[1756732114100,4.21729457,200.49,200.45,5.66877525]
[1756732114530,0.03,200.49,200.46,4.86729457]
[1756732114704,0.03,200.49,200.47,4.86729457]
[1756732115320,0.03,200.49,200.48,0.68]
[1756732115824,0.03,200.49,200.48,5.66802873]
[1756732118034,4.92729457,200.49,200.44,5.66902414]
[1756732118324,4.18729457,200.47,200.44,44.28902414]
[1756732118525,4.89729457,200.47,200.44,44.28902414]
[1756732118723,4.89729457,200.46,200.42,5.10933794]
[1756732118911,4.18729457,200.47,200.42,5.78933794]
[1756732119106,4.89729457,200.47,200.42,5.78933794]
[1756732119420,0.71,200.46,200.42,5.10933794]
[1756732119727,4.18729457,200.47,200.42,5.10933794]
[1756732120028,4.18729457,200.47,200.43,0.68]
[1756732120323,4.18729457,200.47,200.44,0.68]
[1756732120495,0.74,200.49,200.42,17.58314294]
[1756732120698,4.21729457,200.49,200.43,4.86729457]
[1756732120895,4.21729457,200.49,200.44,0.68]
[1756732121221,4.21729457,200.49,200.45,0.68]
[1756732121922,0.03,200.49,200.46,4.98852638]
[1756732122232,4.18729457,200.47,200.42,39.44]
[1756732122523,4.18729457,200.48,200.43,5.66922853]
[1756732122831,4.21729457,200.49,200.44,0.68]
[1756732123138,0.03,200.48,200.43,9.1765231]
[1756732123506,0.03,200.48,200.44,0.68]
[1756732124032,0.03,200.48,200.45,4.98877525]
[1756732124420,0.03,200.48,200.45,5.66877525]
[1756732124728,0.03,200.48,200.45,4.98877525]
[1756732124942,0.03,200.48,200.46,0.68]
[1756732125317,0.03,200.48,200.45,9.17606982]
[1756732125617,0.03,200.48,200.47,4.86729457]
[1756732125809,0.03,200.48,200.47,44.16729457]
[1756732126009,0.03,200.48,200.47,49.15557211]
[1756732127239,0.03,200.48,200.47,44.96827754]
[1756732127610,0.03,200.48,200.47,49.15557211]
[1756732129616,4.89729457,200.53,200.47,52.87205752]
[1756732129809,0.71,200.52,200.48,3.71648541]
[1756732130025,0.71,200.51,200.49,3.71648541]
[1756732130222,0.71,200.51,200.5,3.71648541]
[1756732130921,4.89729457,200.51,200.5,3.71648541]
[1756732131416,0.71,200.51,200.5,3.71648541]
[1756732131615,4.89729457,200.51,200.5,3.71648541]
[1756732131816,9.88457699,200.51,200.5,3.71648541]
[1756732132133,13.24483498,200.51,200.5,3.71648541]
[1756732132333,8.25755256,200.51,200.5,3.71648541]
[1756732132714,30.89729457,200.51,200.5,3.71648541]
[1756732133838,4.18729457,200.52,200.5,3.71648541]
[1756732134138,4.18729457,200.52,200.51,3.71648541]
[1756732134342,7.54877451,200.52,200.51,3.72092601]
[1756732134516,8.25877451,200.52,200.51,3.72092601]
[1756732136644,8.25877451,200.52,200.48,4.98795171]
[1756732136838,4.89729457,200.52,200.48,4.98795171]
[1756732137746,4.89729457,200.52,200.47,4.98827754]
[1756732138043,4.89729457,200.52,200.47,5.66827754]
[1756732138453,30.18729457,200.52,200.48,0.68]
[1756732138740,30.89729457,200.52,200.48,0.68]
[1756732139747,4.89729457,200.52,200.48,5.66788179]
[1756732139954,4.89729457,200.52,200.47,4.98823772]
[1756732140242,4.18729457,200.52,200.48,0.68]
[1756732140447,4.18729457,200.52,200.47,4.98823772]
[1756732140650,0.71,200.54,200.48,4.86729457]
[1756732140828,30.18729457,200.54,200.49,0.68]
[1756732141145,30.18729457,200.54,200.5,0.68]
[1756732141354,4.18729457,200.51,200.46,4.98851587]
[1756732141525,0.71,200.5,200.46,5.66851587]
[1756732142538,4.18729457,200.51,200.46,4.98851587]
[1756732142737,4.89729457,200.51,200.46,5.66851587]
[1756732142954,0.71,200.51,200.46,4.98851587]
[1756732143265,4.89729457,200.51,200.46,5.66851587]
[1756732143440,4.89729457,200.51,200.47,0.68]
[1756732143623,4.18729457,200.51,200.47,0.68]
[1756732143926,4.18729457,200.51,200.48,0.68]
[1756732144117,0.03,200.52,200.48,4.98784235]
[1756732144322,0.03,200.52,200.49,0.68]
[1756732144544,0.71,200.51,200.46,5.66852638]
[1756732144749,4.89729457,200.51,200.47,0.66]
[1756732145251,4.18729457,200.51,200.47,0.66]
[1756732145454,0.03,200.52,200.47,0.66]
[1756732145624,4.85729457,200.51,200.47,0.66]
[1756732145829,0.67,200.51,200.46,4.98852638]
[1756732146158,0.67,200.51,200.46,5.64852638]
[1756732146354,0.67,200.51,200.46,9.17582095]
[1756732146545,0.67,200.51,200.47,0.66]
[1756732146732,4.21729457,200.52,200.47,0.66]
[1756732146934,4.21729457,200.52,200.48,0.66]
[1756732147259,4.21729457,200.52,200.45,4.30729457]
[1756732147458,4.18729457,200.49,200.45,0.12]
[1756732147648,4.18729457,200.48,200.45,0.12]
[1756732147849,4.18729457,200.5,200.45,5.76875311]
[1756732148161,4.18729457,200.5,200.46,0.66]
[1756732148367,30.85729457,200.51,200.46,0.66]
[1756732149060,4.85729457,200.51,200.47,0.66]
[1756732149436,0.67,200.51,200.47,0.66]
[1756732149751,4.18729457,200.51,200.48,3.72414141]
[1756732149952,4.18729457,200.51,200.49,3.72414141]
[1756732150151,159.9,200.54,200.5,3.72414141]
[1756732150462,4.18729457,200.51,200.47,0.66]
[1756732150636,4.18729457,200.51,200.48,4.38516912]
[1756732150836,4.18729457,200.51,200.49,3.72516912]
[1756732151041,4.18729457,200.53,200.5,3.72516912]
[1756732151260,7.55046498,200.52,200.51,3.72516912]
[1756732152041,8.16046498,200.52,200.51,3.72516912]
[1756732152538,3.36317041,200.52,200.51,4.38516912]
[1756732152738,4.18729457,200.53,200.51,3.72516912]
[1756732152964,4.18729457,200.53,200.52,3.72516912]
[1756732153169,7.55040711,200.53,200.52,3.72516912]
[1756732153559,8.16040711,200.53,200.52,3.72516912]
[1756732154175,52.42719212,200.53,200.52,3.72582657]
[1756732156975,3.36311254,200.53,200.52,3.72582657]
[1756732157281,7.55040711,200.53,200.52,4.38582657]
[1756732157463,39.28,200.58,200.52,4.38582657]
[1756732157655,4.18729457,200.56,200.53,4.38582657]
[1756732157983,26.0,200.58,200.54,3.72582657]
[1756732158280,30.18729457,200.56,200.55,4.38582657]
[1756732158574,3.36330331,200.56,200.55,4.38582657]
[1756732158759,7.55059788,200.56,200.55,4.38582657]
[1756732159174,7.55059788,200.56,200.55,3.72582657]
[1756732159565,3.36330331,200.56,200.55,3.72582657]
[1756732159872,0.86686195,200.56,200.55,3.72582657]
[1756732160068,4.18729457,200.56,200.55,3.72582657]
[1756732161270,70.26555203,200.58,200.55,3.72582657]
[1756732161468,70.26555203,200.58,200.56,3.72582657]
[1756732161680,70.26555203,200.58,200.57,3.72582657]
[1756732162102,70.87555203,200.58,200.57,3.72582657]
[1756732162660,70.07729457,200.58,200.57,3.72582657]
[1756732163575,30.79729457,200.58,200.57,3.72582657]
[1756732163779,74.43283649,200.58,200.57,3.72582657]
[1756732163980,69.44729457,200.58,200.57,3.72582657]
[1756732164380,65.26,200.58,200.57,3.72582657]
[1756732164569,69.44729457,200.58,200.57,3.7222751]
[1756732165370,74.43283649,200.58,200.57,3.7222751]
[1756732165574,70.24554192,200.58,200.57,3.7222751]
[1756732165781,74.43283649,200.58,200.57,3.7222751]
[1756732166379,65.26,200.58,200.57,3.7222751]
[1756732166698,74.43283649,200.58,200.57,3.7222751]
[1756732166900,75.04283649,200.58,200.57,3.7222751]
[1756732167076,74.43283649,200.58,200.57,3.7222751]
[1756732167277,75.04283649,200.58,200.57,3.7222751]
[1756732167583,49.04283649,200.58,200.57,3.7222751]
[1756732167897,62.78059207,200.58,200.57,3.7222751]
[1756732168096,26.0,200.55,200.52,0.12]
[1756732168408,70.24645077,200.55,200.53,3.72444497]
[1756732168598,70.24645077,200.55,200.54,3.72444497]
[1756732168897,70.24645077,200.55,200.52,0.12]
[1756732169105,65.26,200.55,200.52,0.12]
[1756732169307,65.26,200.55,200.53,0.66]
[1756732169522,26.14216157,200.58,200.54,0.66]
[1756732169679,4.18729457,200.55,200.54,0.66]
[1756732170996,30.18729457,200.55,200.54,0.66]
[1756732171890,30.18729457,200.55,200.52,0.78]
[1756732172108,30.18729457,200.55,200.53,0.66]
[1756732172279,30.18729457,200.55,200.54,0.66]
[1756732172603,26.0,200.55,200.54,0.66]
[1756732172793,30.18729457,200.55,200.54,0.66]
[1756732173198,26.0,200.55,200.54,0.66]
[1756732173498,30.18729457,200.55,200.54,0.66]
[1756732175211,5.107027,200.6,200.54,0.66]
[1756732175516,3.36184823,200.59,200.54,0.66]
[1756732175701,4.18729457,200.57,200.54,0.66]
[1756732176415,4.18729457,200.55,200.52,5.10697116]
[1756732176594,4.18729457,200.55,200.53,0.66]
[1756732176915,4.18729457,200.55,200.54,0.66]
[1756732177720,4.98556512,200.58,200.54,0.66]
[1756732178013,4.18729457,200.55,200.54,0.66]
[1756732178382,7.54918506,200.55,200.52,0.12]
[1756732178583,4.18729457,200.53,200.52,0.12]
[1756732178990,4.98603909,200.56,200.52,0.12]
[1756732179281,4.18729457,200.53,200.52,0.78]
[1756732179481,4.18039468,200.6,200.52,9.9542326]
[1756732179681,4.18729457,200.57,200.53,0.66]
[1756732179985,4.18729457,200.56,200.53,5.64675956]
[1756732180189,4.18729457,200.56,200.54,0.66]
[1756732181204,0.03,200.58,200.54,0.66]
[1756732181403,4.18729457,200.56,200.54,0.66]
[1756732181714,4.18729457,200.55,200.52,0.12]
[1756732181895,26.0,200.57,200.53,0.66]
[1756732182095,26.0,200.57,200.52,0.12]
[1756732182096,4.18729457,200.55,200.54,0.66]
[1756732182289,4.18729457,200.55,200.52,0.12]
[1756732182488,4.18729457,200.56,200.53,0.66]
[1756732182693,4.18729457,200.55,200.53,0.66]
[1756732185211,4.18729457,200.55,200.52,5.10701557]
[1756732185411,4.18729457,200.55,200.54,0.66]
[1756732186286,4.18729457,200.56,200.54,0.66]
[1756732186487,26.03,200.58,200.55,0.66]
[1756732186710,30.21729457,200.58,200.55,0.66]
[1756732186886,4.18729457,200.57,200.55,0.66]
[1756732188229,4.18729457,200.56,200.53,5.64678501]
[1756732188516,4.18729457,200.56,200.54,0.66]
[1756732188714,4.18729457,200.55,200.52,0.12]
[1756732189020,4.18729457,200.56,200.53,0.66]
[1756732189427,30.21729457,200.58,200.54,0.66]
[1756732189597,4.18729457,200.56,200.52,5.10698993]
[1756732189926,26.64,200.58,200.52,5.10698993]
[1756732190128,4.18729457,200.56,200.53,0.66]
[1756732190307,0.03,200.58,200.53,0.66]
[1756732190619,4.21729457,200.58,200.53,0.66]
[1756732190825,4.18729457,200.57,200.53,0.66]
[1756732191000,4.18729457,200.57,200.54,4.38276243]
[1756732191321,4.18729457,200.56,200.55,3.72276243]
[1756732191623,44.53505015,200.56,200.55,3.72276243]
[1756732191822,52.08239463,200.56,200.55,3.72276243]
[1756732191990,57.06843372,200.56,200.55,3.72276243]
[1756732192718,57.06843372,200.56,200.52,0.12]
[1756732192925,43.92505015,200.53,200.52,0.12]
[1756732193115,86.52509963,200.53,200.52,0.12]
[1756732193294,87.13509963,200.53,200.52,0.12]
[1756732194220,92.12188464,200.53,200.52,0.12]
[1756732196002,26.0,200.5,200.49,0.12]
[1756732196212,95.55744245,200.5,200.49,0.12]
[1756732196407,0.14216157,200.49,200.45,0.12]
[1756732196607,4.18729457,200.46,200.45,0.12]
[1756732196808,43.42729457,200.46,200.45,0.12]
[1756732197216,39.24,200.46,200.45,0.12]
[1756732197417,43.42729457,200.46,200.45,0.12]
[1756732198507,48.41582095,200.46,200.45,0.12]
[1756732198717,62.76357653,200.46,200.45,0.12]
[1756732199806,39.59559401,200.43,200.42,0.12]
[1756732200007,78.97775558,200.43,200.42,0.12]
[1756732200209,43.42729457,200.43,200.42,0.78]
[1756732200720,43.42729457,200.43,200.42,0.12]
[1756732200924,48.41656763,200.43,200.42,0.12]
[1756732201128,48.41656763,200.43,200.4,0.12]
[1756732201129,39.59559401,200.41,200.4,0.12]
[1756732201309,87.21018315,200.41,200.4,0.12]
[1756732201509,87.96234472,200.41,200.4,0.12]
[1756732201833,87.35234472,200.41,200.4,0.12]
[1756732202130,26.0,200.38,200.36,0.12]
[1756732202355,221.91340659,200.38,200.36,0.12]
[1756732202545,222.52340659,200.38,200.36,0.12]
[1756732202742,13.59559401,200.37,200.36,0.12]
[1756732202946,43.92505015,200.35,200.34,0.12]
[1756732203255,0.14216157,200.33,200.32,0.12]
[1756732203437,83.16505015,200.33,200.32,0.12]
[1756732203952,85.16560015,200.33,200.32,0.12]
[1756732204444,13.59559401,200.32,200.29,0.12]
[1756732204648,39.73775558,200.3,200.29,0.12]
[1756732204834,87.35234472,200.3,200.29,0.12]
[1756732205647,83.16505015,200.3,200.29,0.12]
[1756732205832,69.42729457,200.3,200.29,0.12]
[1756732206036,69.44729457,200.3,200.29,0.81]
[1756732206437,69.44729457,200.3,200.29,0.12]
[1756732207049,30.18729457,200.3,200.29,0.12]
[1756732207252,69.44729457,200.3,200.29,0.12]
[1756732207752,30.18729457,200.3,200.29,0.12]
[1756732207953,69.44729457,200.3,200.29,0.12]
[1756732208758,74.4398058,200.3,200.29,0.12]
[1756732209354,76.4405568,200.3,200.29,0.12]
[1756732209546,68.97560695,200.3,200.29,0.12]
[1756732209729,13.73775558,200.29,200.27,0.12]
[1756732209936,57.18505015,200.28,200.27,0.12]
[1756732210134,13.73775558,200.28,200.27,0.12]
[1756732210365,39.26,200.28,200.27,0.12]
[1756732210659,65.26,200.28,200.27,0.81]
[1756732211159,26.0,200.28,200.27,0.81]
[1756732211761,65.26,200.28,200.27,0.81]
[1756732212137,69.44729457,200.28,200.27,0.81]
[1756732212450,30.18729457,200.28,200.27,0.81]
[1756732212763,65.26,200.28,200.27,0.81]
[1756732213136,26.0,200.28,200.27,0.81]
[1756732213336,65.26,200.28,200.27,0.81]
[1756732213969,65.26,200.28,200.27,0.12]
[1756732213970,69.44729457,200.28,200.27,0.12]
[1756732214145,74.44030435,200.28,200.27,0.12]
[1756732214459,71.44824557,200.28,200.27,0.12]
[1756732215855,32.18824557,200.28,200.27,0.12]
[1756732216061,71.44824557,200.28,200.27,0.12]
[1756732216759,32.18824557,200.28,200.27,0.12]
[1756732216960,71.44824557,200.28,200.27,0.12]
[1756732218135,67.260951,200.28,200.27,0.12]
[1756732218340,71.44824557,200.28,200.27,0.12]
[1756732218850,32.18824557,200.28,200.27,0.12]
[1756732219164,134.51,200.31,200.27,5.8032591]
[1756732219165,138.08729457,200.31,200.27,5.8032591]
[1756732219337,39.26,200.3,200.27,9.99055367]
[1756732219542,39.26,200.3,200.28,0.69]
[1756732221237,26.0,200.32,200.28,9.87008023]
[1756732221444,4.18729457,200.35,200.29,4.87729457]
[1756732221663,39.26,200.34,200.3,4.87729457]
[1756732221839,39.26,200.34,200.31,0.69]
[1756732222167,43.44729457,200.34,200.31,0.69]
[1756732222465,39.26,200.33,200.29,4.18729457]
[1756732222667,39.26,200.33,200.32,0.69]
[1756732222857,43.44729457,200.33,200.28,5.68278566]
[1756732223059,43.44729457,200.33,200.29,0.69]
[1756732223270,4.18729457,200.32,200.3,0.69]
[1756732223565,43.44729457,200.31,200.28,0.69]
[1756732223954,43.44729457,200.31,200.29,0.69]
[1756732224668,4.18729457,200.3,200.27,0.12]
[1756732224844,39.26,200.29,200.28,0.69]
[1756732225267,4.18729457,200.3,200.28,0.69]
[1756732225570,26.0,200.33,200.29,0.69]
[1756732225766,39.26,200.32,200.29,0.69]
[1756732225973,39.26,200.32,200.3,0.69]
[1756732226169,39.26,200.32,200.27,0.12]
[1756732226170,4.18729457,200.31,200.27,0.12]
[1756732226468,39.26,200.3,200.28,0.69]
[1756732229252,43.44729457,200.3,200.28,0.69]
[1756732231755,43.44729457,200.3,200.27,0.12]
[1756732231953,30.18729457,200.28,200.27,0.12]
[1756732232157,69.44729457,200.28,200.27,0.12]
[1756732232358,70.05729457,200.28,200.27,0.12]
[1756732232556,70.19945614,200.28,200.27,0.12]
[1756732232755,83.79505015,200.28,200.27,0.12]
[1756732233063,85.79600015,200.28,200.27,0.12]
[1756732233464,90.78900993,200.28,200.27,0.12]
[1756732233673,39.59559401,200.25,200.24,0.2]
[1756732233853,83.04288858,200.25,200.24,0.2]
[1756732234053,83.65288858,200.25,200.24,0.2]
[1756732234270,44.39288858,200.25,200.24,0.2]
[1756732234472,83.65288858,200.25,200.24,0.2]
[1756732234852,88.64664638,200.25,200.24,0.2]
[1756732235478,90.64809738,200.25,200.24,0.2]
[1756732235683,90.79025895,200.25,200.24,0.2]
[1756732236294,51.53025895,200.25,200.24,0.2]
[1756732236480,90.79025895,200.25,200.24,0.2]
[1756732237574,93.4014557,200.25,200.24,0.2]
[1756732238289,54.1414557,200.25,200.24,0.2]
[1756732238587,93.4014557,200.25,200.24,0.2]
[1756732238786,54.1414557,200.25,200.24,0.2]
[1756732238972,93.4014557,200.25,200.24,0.2]
[1756732239902,13.73775558,200.24,200.23,0.12]
[1756732240076,17.92505015,200.24,200.23,0.12]
[1756732240275,57.79505015,200.24,200.23,0.12]
[1756732240783,147.63775558,200.24,200.23,0.12]
[1756732241002,43.44729457,200.24,200.23,0.12]
[1756732241293,74.44130176,200.24,200.23,0.12]
[1756732241601,74.58346333,200.24,200.23,0.12]
[1756732241796,62.78905734,200.24,200.23,0.12]
[1756732243595,64.79070934,200.24,200.23,0.12]
[1756732244284,24.92070934,200.24,200.23,0.12]
[1756732244690,64.18070934,200.24,200.23,0.12]
[1756732245001,24.92070934,200.24,200.23,0.12]
[1756732245307,64.18070934,200.24,200.23,0.12]
[1756732245494,64.79070934,200.24,200.23,1e-08]
[1756732245685,25.53070934,200.24,200.23,1e-08]
[1756732246092,64.18070934,200.24,200.23,1e-08]
[1756732246300,50.92070934,200.24,200.23,1e-08]
[1756732246482,50.58511533,200.24,200.23,1e-08]
[1756732246800,6.33110814,200.24,200.23,0.72000001]
[1756732247002,41.261652,200.24,200.23,0.72000001]
[1756732247178,39.26,200.24,200.23,0.72000001]
[1756732247377,43.44729457,200.24,200.23,0.72000001]
[1756732247592,57.18505015,200.24,200.23,1e-08]
[1756732247882,62.17905734,200.24,200.23,1e-08]
[1756732248591,22.91905734,200.24,200.23,0.72000001]
[1756732248791,62.17905734,200.24,200.23,0.72000001]
[1756732248994,43.44729457,200.24,200.23,0.72000001]
[1756732249578,4.18729457,200.24,200.23,0.72000001]
[1756732249779,43.44729457,200.24,200.23,0.72000001]
[1756732249978,48.44130176,200.24,200.23,0.72000001]
[1756732250190,48.44130176,200.24,200.23,1e-08]
[1756732250592,48.58346333,200.24,200.23,1e-08]
[1756732250792,62.78905734,200.24,200.23,1e-08]
[1756732251799,13.73775558,200.23,200.22,0.2]
[1756732251978,13.51125675,200.22,200.21,0.2]
[1756732252182,14.12125675,200.22,200.21,1e-08]
[1756732253502,5.13666761,200.22,200.21,1e-08]
[1756732253802,9.32396218,200.22,200.21,1e-08]
[1756732254016,9.18180061,200.22,200.21,0.72000001]
[1756732254191,43.46729457,200.22,200.21,0.72000001]
[1756732254384,48.60396218,200.22,200.21,0.72000001]
[1756732254992,43.60945614,200.22,200.21,0.72000001]
[1756732255201,48.60396218,200.22,200.21,0.72000001]
[1756732256026,43.46729457,200.22,200.21,0.72000001]
[1756732257014,62.80955619,200.22,200.21,1e-08]
[1756732257225,66.99685076,200.22,200.21,1e-08]
[1756732257395,13.73775558,200.21,200.2,0.12]
[1756732257714,22.72234472,200.21,200.2,0.12]
[1756732258083,26.14216157,200.19,200.18,0.12]
[1756732258290,69.68945614,200.19,200.18,0.12]
[1756732258488,70.29945614,200.19,200.18,0.12]
[1756732259115,69.68945614,200.19,200.18,0.12]
[1756732260227,88.28030465,200.19,200.18,0.12]
[1756732260394,88.28030465,200.19,200.17,0.12]
[1756732260395,30.32945614,200.18,200.17,0.12]
[1756732260593,39.73775558,200.17,200.16,0.2]
[1756732260795,83.30505015,200.17,200.16,0.2]
[1756732261113,83.91505015,200.17,200.16,1e-08]
[1756732261312,83.91505015,200.17,200.09,0.72]
[1756732261313,85.91760315,200.17,200.09,0.72]
[1756732261500,4.32945614,200.15,200.09,0.72]
[1756732261710,57.48505015,200.15,200.09,0.72]
[1756732262013,26.0,200.11,200.09,0.72]
[1756732262214,48.88695738,200.1,200.01,4.18729457]
[1756732262435,4.18729457,200.03,200.02,0.72]
[1756732263318,26.0,200.01,199.97,0.2]
[1756732263513,4.32945614,200.03,199.97,0.2]
[1756732263514,30.18729457,199.98,199.97,0.2]
[1756732263716,69.90945614,199.98,199.97,0.2]
[1756732263919,83.50505015,199.98,199.97,0.2]
[1756732264247,88.5055502,199.98,199.97,0.2]
[1756732264606,0.14216157,199.98,199.97,0.92]
[1756732264847,43.96945614,199.98,199.97,0.2]
[1756732265006,62.5655502,199.98,199.97,0.2]
[1756732265403,22.9255502,199.98,199.97,0.2]
[1756732265632,62.42338863,199.98,199.97,0.2]
[1756732266234,64.96994893,199.98,199.97,0.2]
[1756732266637,39.59559401,199.94,199.85,86.20909624]
[1756732266840,6.73385487,199.86,199.85,0.7]
[1756732267009,46.77601644,199.86,199.85,0.7]
[1756732267524,0.14216157,199.85,199.82,0.7]
[1756732267714,40.04216157,199.84,199.83,0.7]
[1756732267908,26.0,199.86,199.83,0.7]
[1756732268137,6.73385487,199.84,199.83,0.7]
[1756732268343,46.63385487,199.84,199.74,12.51627115]